Cogmind - Beta 13 @@@ ROGUE MODE // 2024.04.09 @ 23:36:35 Player: darki Result: Destroyed by Y-45 Defender with Heavy Assault Rifle Performance ------------- Evolutions (2) 1000 Regions Visited (10) 2000 Robots Destroyed (140) 700 Value Destroyed (3867) 3867 Prototype IDs (5) 100 Alien Tech Used (0) 0 Bonus (1507) 1507 TOTAL SCORE: 9174 Bonus ------- High Alert Combat Kills 546 Follower Combat Kills 70 Entered Garrisons 400 Used RIF Installer 500 Friendly Fire -9 Cogmind --------- Core Integrity 0/550 Matter 255/300 Energy 7/100 System Corruption 0% Temperature Warm (105) Movement Flying (382) Ox5 Location -8/Garrison Parts ------- > --- POWER (1) -------- (None) > --- PROPULSION (4) --- Improved VTOL Module Improved VTOL Module > --- UTILITY (4) ------ High-capacity Storage Unit Light Armor Plating Improved Light Armor Plating Improved Light Armor Plating > --- WEAPON (2) ------- Particle Gun > --- INVENTORY (20) --- Light Treads Titanium Leg Titanium Leg Improved Flight Unit Improved Flight Unit Improved VTOL Module Improved VTOL Module Improved Sensor Array Improved Signal Interpreter Core Shielding Improved Light Armor Plating Relay Coupler [NC] (31) Relay Coupler [Swarmer] (44) Relay Coupler [Grunt] (28) Heavy Rocket Launcher Improved Datajack Plasma Cutter Katana Peak State ------------ > --- POWER ------------ Light Nuclear Core > --- PROPULSION ------- Titanium Leg Titanium Leg Titanium Leg Titanium Leg > --- UTILITY ---------- Improved Cooling System High-capacity Storage Unit Core Analyzer Hardened Medium Armor Plating > --- WEAPON ----------- Arc Projector Improved Datajack > --- INVENTORY -------- Improved Flight Unit Improved Flight Unit Improved VTOL Module Improved VTOL Module Improved VTOL Module Improved VTOL Module Improved Sensor Array Improved Signal Interpreter Core Shielding Light Armor Plating Improved Light Armor Plating Improved Light Armor Plating Improved Light Armor Plating Relay Coupler [NC] Relay Coupler [Swarmer] Relay Coupler [Grunt] Beam Rifle Heavy Rocket Launcher Plasma Cutter Katana [Rating: 39] Favorites ----------- Power Light Nuclear Core Engine Light Ion Engine Power Core Light Nuclear Core Propulsion Aluminum Leg Treads Light Treads Leg Aluminum Leg Flight Unit Improved VTOL Module Utility High-capacity Storage Unit Device Heat Sink Storage High-capacity Storage Unit Processor Core Analyzer Protection Core Shielding Weapon Shotgun Energy Gun Arc Projector Ballistic Gun Shotgun Ballistic Cannon Light Cannon Launcher Rocket Launcher Special Weapon Plasma Cutter Slashing Weapon Katana Special Melee Weapon Improved Datajack Build | -11 -10 -10 -9 -9 -9 -8 -8 -8 -8 -8 ------- Run | Yrd Mat Min Mat Min Exi Min Mat Gar Mat Gar Slots Evolved 4 | . . . 2 . . . 2 . . . Power . | . . . . . . . . . . . Propulsion 2 | . . . 1 . . . 1 . . . Utility 2 | . . . 1 . . . 1 . . . Weapon . | . . . . . . . . . . . Parts Attached 134 | . 11 5 19 4 . 11 18 29 23 14 Power 12 | . 1 1 1 1 . 2 2 2 1 1 Engine 5 | . 1 1 1 . . . 1 1 . . Core 7 | . . . . 1 . 2 1 1 1 1 Reactor . | . . . . . . . . . . . Propulsion 50 | . 2 3 9 1 . 5 7 12 8 3 Treads 9 | . . . 5 . . . . 3 . 1 Leg 38 | . 2 3 4 1 . 5 6 9 8 . Wheel . | . . . . . . . . . . . Hover . | . . . . . . . . . . . Flight 3 | . . . . . . . 1 . . 2 Utility 20 | . 2 . 4 . . 1 5 4 . 4 Device 7 | . 1 . 2 . . 1 2 1 . . Storage 1 | . 1 . . . . . . . . . Processor 1 | . . . . . . . 1 . . . Hackware . | . . . . . . . . . . . Protection 11 | . . . 2 . . . 2 3 . 4 Artifact . | . . . . . . . . . . . Weapon 52 | . 6 1 5 2 . 3 4 11 14 6 Energy Gun 12 | . 1 . 1 . . . . . 6 4 Energy Cannon . | . . . . . . . . . . . Ballistic Gun 27 | . 4 1 4 1 . 3 3 7 4 . Ballistic Cannon 1 | . 1 . . . . . . . . . Launcher 2 | . . . . 1 . . . . 1 . Special Weapon 4 | . . . . . . . . 3 . 1 Impact Weapon . | . . . . . . . . . . . Slashing Weapon 2 | . . . . . . . 1 1 . . Piercing Weapon . | . . . . . . . . . . . Special Melee Weapon 4 | . . . . . . . . . 3 1 Unidentified Prototypes 3 | . . . 2 . . . 1 . . . Parts Lost 36 | . 4 4 2 2 . 4 2 8 3 7 Power 4 | . 1 1 . . . . . 1 . 1 Propulsion 9 | . 1 2 . . . 1 1 2 . 2 Utility 7 | . . . 1 1 . . 1 3 . 1 Weapon 16 | . 2 1 1 1 . 3 . 2 3 3 Highest Loss Streak 6 | . 1 3 1 1 . 3 1 3 1 6 To Critical Strikes . | . . . . . . . . . . . Average Slot Usage (%) 95 | . 97 91 94 95 88 98 88 96 99 96 Engine 4 | . 13 6 11 2 . . . 7 . . Core 5 | . . . . 8 11 11 8 . 9 8 Treads 2 | . . . 16 . . . . 6 . . Leg 30 | . 27 27 15 33 33 33 34 29 36 34 Device 11 | . 12 14 12 11 11 20 15 7 9 8 Storage 10 | . 14 14 11 11 11 11 9 9 9 9 Processor 3 | . . . . . . . . 9 9 8 Protection 4 | . . . 7 6 . . 1 8 9 9 Energy Gun 3 | . 4 . . . . . . . 13 15 Ballistic Gun 16 | . 14 28 20 21 22 22 17 17 3 . Ballistic Cannon 1 | . 8 . . . . . . . . . Naked Turns . | . . . . . . . . . . . Heaviest Build 66 | 12 50 50 57 57 52 58 66 66 56 62 Greatest Support 68 | 20 20 30 60 30 30 33 51 60 68 68 Greatest Overweight (x) 6 | . 2 2 1 1 1 1 1 6 1 2 Average Overweight (x) . | . 1 1 . 1 1 1 1 1 . . Largest Inventory Capacity 20 | . 20 20 20 20 20 20 20 20 20 20 Average Capacity 19 | . 16 20 20 20 20 20 20 20 20 20 Most Carried 20 | . 20 20 20 20 20 20 20 20 20 20 Average Carried 18 | . 10 18 19 19 19 19 19 19 19 19 Final Capacity 20 | 8 20 20 20 20 20 20 20 20 20 20 Final Carried 20 | 6 20 18 20 19 20 20 20 20 20 18 Class Distribution -------------------- 66% | Scavenger-Mutant 33% | Mutant Dominant Class ---------------- Mutant | -10/Materials Mutant | -10/Mines Scavenger-Mutant | -9/Materials Scavenger-Mutant | -9/Mines Scavenger-Mutant | -9/Exiles Scavenger-Mutant | -8/Mines Scavenger-Mutant | -8/Materials Scavenger-Mutant | -8/Garrison Scavenger-Mutant | -8/Materials Mutant | -8/Garrison Resources | -11 -10 -10 -9 -9 -9 -8 -8 -8 -8 -8 ----------- Run | Yrd Mat Min Mat Min Exi Min Mat Gar Mat Gar Matter Collected 3601 | 200 449 158 536 179 . 242 492 896 349 100 Remotely . | . . . . . . . . . . . Salvage Created 4755 | . 612 175 756 173 . 238 598 1033 819 351 Parts 282 | . 45 16 36 12 . 16 33 61 50 13 Haulers Intercepted 10 | . 2 . 2 . . . 3 . 3 . Recyclers Shooed 5 | . 1 2 . . . 1 . . 1 . Parts Field Recycled . | . . . . . . . . . . . Retrieved Matter . | . . . . . . . . . . . Parts Self-Destructed . | . . . . . . . . . . . Prevented . | . . . . . . . . . . . Kills | -11 -10 -10 -9 -9 -9 -8 -8 -8 -8 -8 ------- Run | Yrd Mat Min Mat Min Exi Min Mat Gar Mat Gar Combat Hostiles Destroyed 119 | . 13 7 16 7 . 8 14 31 16 7 Guns 112 | . 11 7 16 6 . 8 14 30 13 7 Cannons 2 | . 2 . . . . . . . . . AOE 4 | . . . . 1 . . . . 3 . Classes Destroyed 14 | . 6 3 3 . . 1 . 1 . . Worker 3 | . 1 2 . . . . . . . . Tunneler 2 | . . 1 . . . 1 . . . . Hauler 10 | . 2 . 2 . . . 3 . 3 . Recycler 4 | . 1 1 . . . . 1 . 1 . Operator 3 | . . . 2 . . . . . 1 . Watcher 2 | . 1 . . . . . . . 1 . Swarmer 41 | . 6 2 . 3 . 4 7 11 8 . Grunt 49 | . 7 . 11 4 . 2 3 13 5 4 Brawler 4 | . . . . . . . . 3 1 . Duelist 4 | . . . 2 . . 1 . 1 . . Sentry 15 | . . . 3 . . . 4 3 2 3 Demolisher 2 | . . 2 . . . . . . . . Hunter 1 | . . . . . . 1 . . . . Assembled 3 | . . 3 . . . . . . . . Best Kill Streak 6 | . 6 4 3 3 . 5 5 5 3 3 Combat Bots Only 5 | . 4 3 3 3 . 4 5 5 3 3 Max Kills in Single Turn 2 | . 1 2 1 2 . 1 2 2 2 1 Gunslinging 1 | . . . . 1 . . 1 . 1 . Exploded 2 | . . . . 1 . . . . 2 . Melee . | . . . . . . . . . . . Uniques/NPCs Destroyed . | . . . . . . . . . . . Combat | -11 -10 -10 -9 -9 -9 -8 -8 -8 -8 -8 -------- Run | Yrd Mat Min Mat Min Exi Min Mat Gar Mat Gar Hostile Shots Fired 681 | . 76 15 74 28 . 75 82 144 72 115 Missed 189 | . 29 4 14 4 . 22 28 41 21 26 Damage Taken 6996 | . 459 485 933 308 . 687 680 1415 728 1301 Core 1026 | . 73 82 126 39 . 144 79 208 83 192 Absorbed by Shields 256 | . . . . . . 76 20 134 . 26 Redirected to Shielding 22 | . . . . . . . . 6 16 . Core Remaining (%) 53 | 100 . 38 . . . 22 . . . . Volleys Fired 363 | . 58 18 49 15 . 31 47 63 52 30 Largest 2 | . 2 2 2 2 . 2 2 2 2 2 Hottest 121 | . 80 46 46 56 . 51 46 46 111 121 Shots Fired 690 | . 101 36 93 30 . 62 94 122 102 50 Gun 677 | . 92 36 93 29 . 62 94 122 99 50 Cannon 9 | . 9 . . . . . . . . . Launcher 2 | . . . . 1 . . . . 1 . Special 2 | . . . . . . . . . 2 . Kinetic 522 | . 62 36 93 29 . 62 94 122 24 . Thermal 61 | . . . . . . . . . 13 48 Explosive 2 | . . . . 1 . . . . 1 . Electromagnetic 105 | . 39 . . . . . . . 64 2 Robot Hit Streak 19 | . 17 9 10 4 . 7 19 12 10 13 Robot Miss Streak 8 | . 3 3 4 4 . 8 4 5 3 3 Penetration Max . | . . . . . . . . . . . Secondary Targets 23 | . 3 1 2 1 . 3 3 6 2 2 Max Gunslinging Chain 1 | . 1 1 1 1 . 1 1 1 1 1 Shots Hit Robots 527 | . 72 27 76 21 . 38 77 97 80 39 Core Hits 279 | . 27 19 44 14 . 17 35 65 41 17 Critical Kills 3 | . 1 . 1 . . . . 1 . . Critical Parts Destroyed 3 | . . . 1 . . 1 . 1 . . Critical Strikes 12 | . 3 . 2 . . 1 . 2 . 4 Burn 4 | . . . . . . . . . . 4 Destroy 6 | . 1 . 2 . . 1 . 2 . . Blast 1 | . 1 . . . . . . . . . Corrupt 1 | . 1 . . . . . . . . . Melee Attacks 9 | . . . . . . . 1 4 3 1 Impact . | . . . . . . . . . . . Slashing 5 | . . . . . . . 1 4 . . Piercing . | . . . . . . . . . . . Sneak Attacks 4 | . . . . . . . . . 3 1 Combat Hostiles 4 | . . . . . . . . . 3 1 Follow-up Attacks . | . . . . . . . . . . . Damage Inflicted 8253 | . 963 412 1237 409 . 522 1124 1526 1464 596 Guns 7591 | . 859 412 1237 323 . 522 1124 1526 992 596 Cannons 104 | . 104 . . . . . . . . . Explosions 536 | . . . . 86 . . . . 450 . Melee . | . . . . . . . . . . . Ramming . | . . . . . . . . . . . Kinetic 6014 | . 570 412 1237 323 . 522 1124 1526 300 . Thermal 1062 | . . . . . . . . . 491 571 Explosive 197 | . . . . 86 . . . . 111 . Electromagnetic 980 | . 393 . . . . . . . 562 25 Impact . | . . . . . . . . . . . Slashing . | . . . . . . . . . . . Piercing . | . . . . . . . . . . . Highest Corruption . | . . . . . . . . . . . Average Corruption . | . . . . . . . . . . . Corruption Purged . | . . . . . . . . . . . Corruption Blocked . | . . . . . . . . . . . Overload Shots . | . . . . . . . . . . . Overflow Damage 52 | . . . . . . . . . 52 . Projectiles . | . . . . . . . . . . . Explosions 52 | . . . . . . . . . 52 . Melee . | . . . . . . . . . . . Knockbacks 1 | . 1 . . . . . . . . . Impact . | . . . . . . . . . . . Kinetic 1 | . 1 . . . . . . . . . Secondary . | . . . . . . . . . . . Self-Inflicted Damage . | . . . . . . . . . . . Shots . | . . . . . . . . . . . Rammed . | . . . . . . . . . . . Targets Rammed . | . . . . . . . . . . . Kicked . | . . . . . . . . . . . Crushed . | . . . . . . . . . . . Highest Temperature 368 | . 168 . 1 . . 6 18 16 192 368 Average Temperature 98 | . 101 . 1 . . 4 7 6 56 162 Received Heat Transfer 2545 | . 171 12 279 159 . 172 278 583 324 567 Effects 5 | . . . . . . . . . . 5 Energy Bleed 2 | . . . . . . . . . . 2 Interference 1 | . . . . . . . . . . 1 Matter Decay 1 | . . . . . . . . . . 1 Short Circuit 1 | . . . . . . . . . . 1 Siege Activations . | . . . . . . . . . . . Robots Corrupted . | . . . . . . . . . . . Combat Hostiles . | . . . . . . . . . . . Parts Fried 8 | . 4 . . . . . . . 4 . Impact Corruptions . | . . . . . . . . . . . Robots Melted . | . . . . . . . . . . . Combat Hostiles . | . . . . . . . . . . . Parts Melted 3 | . . . . . . . . . 1 2 Heat Transferred 2540 | . . . . . . . . . 857 1683 Parts Sabotaged . | . . . . . . . . . . . Parts Stolen . | . . . . . . . . . . . Parts Stripped . | . . . . . . . . . . . Power Chain Reactions 4 | . . . . . . . . . 4 . Alert | -11 -10 -10 -9 -9 -9 -8 -8 -8 -8 -8 ------- Run | Yrd Mat Min Mat Min Exi Min Mat Gar Mat Gar Peak Influence 1131 | . 296 60 422 158 . 185 230 1131 724 543 Initial 551 | . . . 7 108 . . 13 122 551 449 Average 324 | . 85 38 240 108 . 81 90 631 619 489 Maximum Alert Level 4 | . 1 . 2 . . . 1 4 3 2 Low Security (%) 51 | . 89 100 33 100 . 100 95 12 . . Level 1 9 | . 10 . 47 . . . 4 12 . . Level 2 29 | . . . 18 . . . . 33 97 100 Level 3 8 | . . . . . . . . 35 2 . Level 4 1 | . . . . . . . . 5 . . Level 5 . | . . . . . . . . . . . High Security . | . . . . . . . . . . . Max Security . | . . . . . . . . . . . Squads Dispatched 7 | . 2 . 3 . . . 2 . . . Investigation 2 | . 1 . 1 . . . . . . . Extermination . | . . . . . . . . . . . Reinforcement 3 | . 1 . 2 . . . . . . . Assault . | . . . . . . . . . . . Garrison 2 | . . . . . . . 2 . . . Intercept . | . . . . . . . . . . . Searches Triggered . | . . . . . . . . . . . Construction Impeded . | . . . . . . . . . . . Haulers Reinforced . | . . . . . . . . . . . Active Scanning Responses . | . . . . . . . . . . . Cargo Convoy Interrupts . | . . . . . . . . . . . Stealth | -11 -10 -10 -9 -9 -9 -8 -8 -8 -8 -8 --------- Run | Yrd Mat Min Mat Min Exi Min Mat Gar Mat Gar Distress Signals 8 | . 1 . 2 . . . 1 . 4 . Communications Jammed . | . . . . . . . . . . . Distress Signals . | . . . . . . . . . . . Times Spotted 170 | . 22 9 29 7 . 10 18 33 31 11 Peak Tracking Total 6 | . 6 3 5 3 . 4 6 6 5 4 Tactical Retreats 10 | . . 1 4 . . 1 . 2 2 . Traps | -11 -10 -10 -9 -9 -9 -8 -8 -8 -8 -8 ------- Run | Yrd Mat Min Mat Min Exi Min Mat Gar Mat Gar Traps Triggered 13 | . 1 . . . . . . 7 1 4 Indirectly . | . . . . . . . . . . . Trap Hack Attempts . | . . . . . . . . . . . Triggered . | . . . . . . . . . . . Disarmed . | . . . . . . . . . . . Reprogrammed 6 | . . . . . . . 6 . . . Reused 3 | . . . . . . . 1 2 . . Traps Extracted . | . . . . . . . . . . . Installed 2 | . . . . . . . . 2 . . Triggered 3 | . . . . . . . 1 2 . . Most Traps Carried 2 | . . . . . . . . 2 . . Machines | -11 -10 -10 -9 -9 -9 -8 -8 -8 -8 -8 ---------- Run | Yrd Mat Min Mat Min Exi Min Mat Gar Mat Gar Machines Disabled 7 | . . . . . . 2 . 4 1 . Max in Single Turn 1 | . . . . . . 1 . 1 1 . Garrison Relay 3 | . . . . . . . . 3 . . Machines Repaired . | . . . . . . . . . . . Machines Dismantled 4 | . . . . . . . . 3 . 1 Machines Sabotaged . | . . . . . . . . . . . Overloaded Fab Kills . | . . . . . . . . . . . Hacking | -11 -10 -10 -9 -9 -9 -8 -8 -8 -8 -8 --------- Run | Yrd Mat Min Mat Min Exi Min Mat Gar Mat Gar Machines Accessed 25 | . 1 . 2 . 1 . 8 3 6 4 Terminals 21 | . 1 . 2 . . . 7 3 4 4 Fabricators . | . . . . . . . . . . . Repair Stations . | . . . . . . . . . . . Recycling Units . | . . . . . . . . . . . Scanalyzers 1 | . . . . . . . . . 1 . Garrison Access 2 | . . . . . . . 1 . 1 . Total Hacks 52 | . 4 . 5 . 1 . 17 7 11 7 Successful 23 | . 2 . 4 . 1 . 9 . 6 1 Failed 29 | . 2 . 1 . . . 8 7 5 6 Catastrophic 8 | . . . . . . . 1 2 3 2 Database Lockouts . | . . . . . . . . . . . Manual 26 | . 2 . 5 . . . 12 . 7 . Terminals 47 | . 4 . 5 . . . 16 7 8 7 Fabricators . | . . . . . . . . . . . Repair Stations . | . . . . . . . . . . . Recycling Units . | . . . . . . . . . . . Scanalyzers 2 | . . . . . . . . . 2 . Garrison Access 2 | . . . . . . . 1 . 1 . Terminal Hacks 11 | . 1 . 2 . 1 . 5 . 1 1 Record 1 | . . . . . 1 . . . . . Robot Analysis 4 | . 1 . 2 . . . . . 1 . Prototype ID Bank 1 | . . . . . . . 1 . . . Emergency Access Points 1 | . . . . . . . . . . 1 Reprogram Traps 1 | . . . . . . . 1 . . . Hauler Manifests 1 | . . . . . . . 1 . . . Registered Components 1 | . . . . . . . 1 . . . Zone Layout 1 | . . . . . . . 1 . . . Fabricator Hacks . | . . . . . . . . . . . Repair Station Hacks . | . . . . . . . . . . . Recycling Unit Hacks . | . . . . . . . . . . . Scanalyzer 2 | . . . . . . . . . 2 . Insert Component 1 | . . . . . . . . . 1 . Analyze 1 | . . . . . . . . . 1 . Garrison Access Hacks 2 | . . . . . . . 1 . 1 . Unlock Access 2 | . . . . . . . 1 . 1 . Unauthorized Hacks 8 | . 1 . 2 . . . 3 . 2 . Terminals 8 | . 1 . 2 . . . 3 . 2 . Botnet 8 | . 1 . 2 . . . 3 . 2 . Fabricators . | . . . . . . . . . . . Repair Stations . | . . . . . . . . . . . Recycling Units . | . . . . . . . . . . . Scanalyzers . | . . . . . . . . . . . Garrison Access . | . . . . . . . . . . . Data Cores Recovered 1 | . . . . . . . . . 1 . Used . | . . . . . . . . . . . Hacking Detections 20 | . 1 . 2 . . . 6 3 4 4 Full Trace Events 3 | . . . 1 . . . . 2 . . Feedback Events . | . . . . . . . . . . . Feedback Blocked . | . . . . . . . . . . . Robot Schematics Acquired . | . . . . . . . . . . . Robots Built . | . . . . . . . . . . . Authchips . | . . . . . . . . . . . Time . | . . . . . . . . . . . Total Robot Build Rating . | . . . . . . . . . . . Part Schematics Acquired 1 | . . . . . . . . . 1 . Parts Built . | . . . . . . . . . . . Authchips . | . . . . . . . . . . . Time . | . . . . . . . . . . . Total Part Build Rating . | . . . . . . . . . . . Parts Repaired . | . . . . . . . . . . . Time . | . . . . . . . . . . . Parts Recycled . | . . . . . . . . . . . Recycled Matter . | . . . . . . . . . . . Retrieved Matter . | . . . . . . . . . . . Retrieved Components . | . . . . . . . . . . . Parts Scanalyzed 1 | . . . . . . . . . 1 . Part Schematics Acquired 1 | . . . . . . . . . 1 . Parts Damaged . | . . . . . . . . . . . Bothacking | -11 -10 -10 -9 -9 -9 -8 -8 -8 -8 -8 ------------ Run | Yrd Mat Min Mat Min Exi Min Mat Gar Mat Gar Used RIF Installer 1 | . . . . . . . . 1 . . Robots Hacked . | . . . . . . . . . . . Non-combat . | . . . . . . . . . . . Combat . | . . . . . . . . . . . Robot Hacks Applied . | . . . . . . . . . . . Relay Couplers Released 15 | . . . . . . . . 15 . . Machine Destruction 15 | . . . . . . . . 15 . . Fabnet Peak Effective % . | . . . . . . . . . . . Robots Rewired 2 | . . . . . . . . . 1 1 Allies Hacked . | . . . . . . . . . . . Hacks Repelled . | . . . . . . . . . . . Allies | -11 -10 -10 -9 -9 -9 -8 -8 -8 -8 -8 -------- Run | Yrd Mat Min Mat Min Exi Min Mat Gar Mat Gar Total Allies 4 | . . . . . . . . 1 1 2 Largest Group 2 | . . . . . . . . 1 1 2 Highest-Rated Group 40 | . . . . . . . . 20 15 40 Highest-Rated Ally 25 | . . . . . . . . 20 15 25 Total Orders . | . . . . . . . . . . . Ally Attacks 8 | . . . . . . . . 2 1 5 Total Damage 294 | . . . . . . . . 88 30 176 Kills 3 | . . . . . . . . 2 1 . Allies Corrupted . | . . . . . . . . . . . Allies Melted . | . . . . . . . . . . . Intel | -11 -10 -10 -9 -9 -9 -8 -8 -8 -8 -8 ------- Run | Yrd Mat Min Mat Min Exi Min Mat Gar Mat Gar Robot Analysis Total 4 | . 1 . 2 . . . . . 1 . Derelict Logs Recovered 2 | . . 1 . 1 . . . . . . Drone Launches . | . . . . . . . . . . . Drone Recoveries . | . . . . . . . . . . . Exploration | -11 -10 -10 -9 -9 -9 -8 -8 -8 -8 -8 ------------- Run | Yrd Mat Min Mat Min Exi Min Mat Gar Mat Gar Turns Passed 10293 | . 1353 549 903 733 736 871 1061 2060 1570 457 Spaces Moved 4507 | 1 564 158 368 356 386 391 433 852 770 228 Core . | . . . . . . . . . . . Treads 380 | . . . 173 . . . . 207 . . Legs 4127 | 1 564 158 195 356 386 391 433 645 770 228 Wheels . | . . . . . . . . . . . Hover . | . . . . . . . . . . . Flight . | . . . . . . . . . . . Fastest Speed 120 | 120 120 190 160 190 190 186 190 160 127 130 Average Speed 185 | 120 201 191 175 190 190 187 190 202 167 130 Slowest Speed 540 | 120 260 260 190 190 190 190 190 540 195 270 Overloaded Moves . | . . . . . . . . . . . Propulsion Burnouts . | . . . . . . . . . . . Robots Hopped . | . . . . . . . . . . . Cave-ins Triggered . | . . . . . . . . . . . Exploration Rate (%) 55 | 2 84 31 41 78 88 78 49 71 57 36 Regions Visited 10 Branch Regions 4 Pre-discovered Areas . | . . . . . . . . . . . Known Exits Taken 2 | . . . . . . . 1 . 1 . Unknown Exits Taken 7 | 1 1 1 1 1 1 1 . . . . Scrap Searched 2 | . . . . 1 . 1 . . . . Spaces Dug 1 | . . . . . . . 1 . . . Terrain Destroyed 40 | . . . . 9 . . 1 . 30 . Melee 1 | . . . . . . . 1 . . . Projectile . | . . . . . . . . . . . AOE 39 | . . . . 9 . . . . 30 . Terrain Rammed . | . . . . . . . . . . . Walls Destroyed . | . . . . . . . . . . . Machines Disabled . | . . . . . . . . . . . Actions | -11 -10 -10 -9 -9 -9 -8 -8 -8 -8 -8 --------- Run | Yrd Mat Min Mat Min Exi Min Mat Gar Mat Gar Total 5745 | . 686 368 536 385 390 467 588 1052 953 320 Wait 506 | . 26 188 77 5 . 29 53 32 76 20 Move 4498 | . 563 157 367 355 385 390 432 851 770 228 Hop . | . . . . . . . . . . . Pick Up 75 | . 19 . 9 2 3 3 13 15 11 . Fast Attach 36 | . 5 1 7 . . 2 6 9 3 3 Attach 31 | . 2 3 7 1 . 4 1 6 2 5 Detach 9 | . 1 . 1 . . . 2 . 1 4 Swap 67 | . 4 1 5 3 . 5 11 14 18 6 Drop 92 | . 8 . 14 4 2 3 22 20 17 2 Fire 363 | . 58 18 49 15 . 31 47 63 52 30 Melee 9 | . . . . . . . 1 4 3 1 Ram . | . . . . . . . . . . . Kick . | . . . . . . . . . . . Crush . | . . . . . . . . . . . Escape Stasis 40 | . . . . . . . . 27 . 13 Rewire . | . . . . . . . . . . . Trap 2 | . . . . . . . . 2 . . Miscellaneous 17 | . . . . . . . . 9 . 8 Route ------- -11/Scrapyard -10/Materials (discovered 6 exits: *Mat x3 / [*Min x2] / [*Sub]) -10/Mines -9/Materials (discovered 2 exits: [*Min] / [*Sto]) -9/Mines (discovered 2 exits: *Mat / *Exi) -9/Exiles -8/Mines -8/Materials (discovered 2 exits: *Fac / Gar) -8/Garrison (discovered 3 exits: *Mat x3) -8/Materials (discovered 2 exits: *Fac / Gar) -8/Garrison (discovered 1 exit: *Fac) History --------- Turn | Location | Event 1 | -11/Scrapyard | Discovered new exit (range 0) 1 | -11/Scrapyard | Entered Materials 1 | -10/Materials | Discovered new exit (range 7) 151 | -10/Materials | Discovered new exit (range 10) 309 | -10/Materials | Build established: Mutant 621 | -10/Materials | Discovered new exit (range 11) 876 | -10/Materials | Discovered new exit (range 16) 1115 | -10/Materials | Discovered new exit (range 9) 1149 | -10/Materials | Discovered new exit (range 15) 1354 | -10/Materials | Entered Mines 1355 | -10/Mines | Assembled infested the area 1564 | -10/Mines | Core integrity fell below 50% 1599 | -10/Mines | Lost 3 parts (1p1n1w) 1886 | -10/Mines | Discovered new exit (range 10) 1903 | -10/Mines | Entered Materials 1903 | -9/Materials | Evolved 2 slots: Propulsion x1, Utility x1 2157 | -9/Materials | Discovered new exit (range 8) 2333 | -9/Materials | Build established: Scavenger-Mutant 2512 | -9/Materials | Discovered new exit (range 15) 2806 | -9/Materials | Entered Mines 2968 | -9/Mines | Discovered new exit (range 10) 3149 | -9/Mines | Received a Rocket Launcher from a helpful Derelict 3366 | -9/Mines | Learned location of 1 exit from Materials 3530 | -9/Mines | Deemed a non-threat by the Exiles lab entrance 3532 | -9/Mines | Discovered new exit (range 5) 3539 | -9/Mines | Entered Exiles 3539 | -9/Exiles | Found Exiles lab abandoned 4254 | -9/Exiles | Discovered new exit (range 14) 4275 | -9/Exiles | Entered Mines 4900 | -8/Mines | Core integrity fell below 50% 4953 | -8/Mines | Lost 3 parts (1n2w) 5074 | -8/Mines | Discovered new exit (range 8) 5146 | -8/Mines | Entered Materials 5146 | -8/Materials | Evolved 2 slots: Propulsion x1, Utility x1 5147 | -8/Materials | Identified exit to Factory 6046 | -8/Materials | Garrison activated, responded to threat 6167 | -8/Materials | Identified exit to Garrison 6207 | -8/Materials | Entered Garrison 6444 | -8/Garrison | Triggered checkpoint 6504 | -8/Garrison | Rescued a captive Derelict 6592 | -8/Garrison | Garrison Relay disabled 6794 | -8/Garrison | Triggered checkpoint 6866 | -8/Garrison | Triggered checkpoint 6923 | -8/Garrison | Discovered new exit (range 11) 7116 | -8/Garrison | Garrison Relay disabled 7727 | -8/Garrison | Lost 3 parts (1p1n1u) 7765 | -8/Garrison | Discovered new exit (range 11) 7784 | -8/Garrison | Installed Relay Interface Framework 7824 | -8/Garrison | Triggered checkpoint 7878 | -8/Garrison | Core integrity fell below 50% 8101 | -8/Garrison | Discovered new exit (range 10) 8142 | -8/Garrison | Triggered checkpoint 8202 | -8/Garrison | Garrison Relay disabled 8267 | -8/Garrison | Entered Materials 9007 | -8/Materials | Discovered exit to Factory (range 16) 9687 | -8/Materials | Build established: Mutant 9837 | -8/Materials | Identified exit to Garrison 9837 | -8/Materials | Entered Garrison 9910 | -8/Garrison | Rescued a captive Derelict 9944 | -8/Garrison | Triggered checkpoint 10062 | -8/Garrison | Triggered checkpoint 10202 | -8/Garrison | Discovered exit to Factory (range 11) 10216 | -8/Garrison | Triggered checkpoint 10267 | -8/Garrison | Core integrity fell below 20% 10294 | -8/Garrison | Destroyed by Y-45 Defender with Heavy Assault Rifle Last Messages --------------- 10247_ Acquired Particle Gun. 10251_ G-47 Trooper suffers critical hit (Burn). 10251_ Lgt. Nuclear Core melted. 10251_ G-47 Trooper destroyed. 10256_ Beam Rifle destroyed. 10258_ Overheating: System interference. 10258_ Core Analyzer temporarily disabled. 10262_ Overheating: Matter decay (-35). 10262_ Titanium Leg destroyed. 10263_ Y-45 Defender destroyed. 10264_ Titanium Leg broken. 10264_ Overheating: Short circuit. 10270_ Critical hit (Burn: +37). 10271_ Dropped Hrd. Medium Armor Plating. 10279_ Acquired 45 matter. 10279_ Titanium Leg destroyed. 10283_ Acquired Lgt. Treads. 10286_ Lgt. Nuclear Core destroyed. 10287_ Overheating: Energy bleed (-12). 10287_ Discarded Core Analyzer. Map ----- +----------------------------------------------------+ | ?????????????????????????????????????????????????? | | ?????????????????????????????????????????????????? | | ?????????????????????????????????????????????????? | | ?????????????????????????????????????????????????? | | ?????????????????????????????????????????????????? | | ?????????????????????????????????????????????????? | | ?????????????????????????????????????????????????? | | ?????????????????????????????????????????????????? | | ?????????????????????????????????????????????????? | | ?????????????????????????????????????????????????? | | ?????????????????????????????????????????????????? | | ?????????????????????????????????????????????????? | | ????????????????????????####?????????????????????? | | ????????????????????????# ?????????????????????? | | ????????????????????????# ?????????????????????? | | ????????????????????????# ?????????????????????? | | ????????????????????????# ^#+????????????????????? | | ????????????????????????# #?????????????????????? | | ????????????????????????# #+#???????????????????? | | ???????####???????#####?# #???????????????????? | | ???????#""#???????# ??# #???????????????????? | | ???????# T#???????#